bitfinex/quotes_SOLUSD_20250901
["timestamp","ask_amount","ask_price","bid_price","bid_amount"]
[1756738787437,65.76,200.51,200.5,0.12]
[1756738788230,0.14216157,200.52,200.5,0.12]
[1756738788435,0.03,200.53,200.51,4.87594081]
[1756738788629,39.76,200.52,200.51,4.87594081]
[1756738789010,39.76,200.52,200.51,0.67]
[1756738789626,39.76,200.52,200.5,4.32594081]
[1756738789835,39.76,200.52,200.51,0.67]
[1756738790043,39.76,200.52,200.5,0.12]
[1756738790044,40.46,200.52,200.5,0.12]
[1756738790545,5.80824,200.53,200.5,0.12]
[1756738790706,0.03,200.53,200.52,4.20594081]
[1756738791040,39.77,200.53,200.52,4.20594081]
[1756738791208,39.77,200.53,200.52,0.67]
[1756738791407,39.77,200.53,200.51,4.20594081]
[1756738791816,39.77,200.53,200.5,4.99594081]
[1756738792019,40.47,200.53,200.5,4.32594081]
[1756738792332,39.77,200.53,200.5,4.32594081]
[1756738792724,39.77,200.53,200.5,4.99594081]
[1756738792911,0.14216157,200.52,200.5,0.12]
[1756738793229,39.74,200.51,200.5,0.12]
[1756738794446,15.03097543,200.53,200.5,0.79]
[1756738794447,5.138198,200.53,200.5,0.79]
[1756738794635,39.74,200.52,200.51,0.67]
[1756738794833,39.74,200.52,200.51,4.20594081]
[1756738795036,5.138198,200.53,200.51,4.87594081]
[1756738795334,39.77,200.53,200.52,4.87594081]
[1756738795911,39.77,200.53,200.52,4.20594081]
[1756738796127,39.77,200.53,200.51,4.20594081]
[1756738796329,39.77,200.53,200.51,4.87594081]
[1756738798033,39.77,200.53,200.51,4.20594081]
[1756738798216,39.77,200.53,200.52,0.67]
[1756738798416,39.77,200.53,200.51,4.20594081]
[1756738798633,40.47,200.53,200.51,4.20594081]
[1756738798936,39.77,200.53,200.51,4.20594081]
[1756738799830,39.77,200.53,200.51,9.19319501]
[1756738800029,39.77,200.53,200.52,4.20594081]
[1756738800239,40.47,200.53,200.5,0.12]
[1756738800426,0.7,200.52,200.5,0.12]
[1756738800629,39.72,200.51,200.5,0.12]
[1756738800937,26.03,200.53,200.51,0.67]
[1756738801120,39.72,200.52,200.51,4.20594081]
[1756738801444,0.03,200.53,200.51,4.20594081]
[1756738801745,0.03,200.53,200.52,4.20594081]
[1756738802040,39.73,200.53,200.52,4.20594081]
[1756738802242,39.73,200.53,200.52,4.87594081]
[1756738802455,0.03,200.53,200.52,4.87594081]
[1756738802621,0.03,200.53,200.52,9.86297452]
[1756738804547,0.03,200.54,200.52,9.86297452]
[1756738804720,0.03,200.54,200.53,4.89594081]
[1756738806743,0.03,200.54,200.53,9.88272582]
[1756738807139,0.03,200.54,200.51,5.67728242]
[1756738807345,0.03,200.54,200.53,4.20594081]
[1756738807544,0.03,200.54,200.51,4.20594081]
[1756738807745,0.7,200.54,200.51,4.20594081]
[1756738808142,0.03,200.54,200.51,4.89594081]
[1756738808345,0.03,200.54,200.53,4.20594081]
[1756738808840,0.03,200.54,200.53,9.88272582]
[1756738810124,1e-08,200.54,200.53,23.47831983]
[1756738810562,1e-08,200.54,200.53,25.47587283]
[1756738810751,1e-08,200.54,200.53,9.88272582]
[1756738810929,1e-08,200.54,200.53,4.98678501]
[1756738811122,1e-08,200.54,200.51,4.32594081]
[1756738811751,0.67,200.53,200.51,0.12]
[1756738811953,0.67,200.53,200.51,5.10721162]
[1756738812169,1e-08,200.54,200.51,0.12]
[1756738812449,0.67000001,200.54,200.51,0.12]
[1756738812826,0.67,200.53,200.51,0.12]
[1756738813354,4.20594082,200.54,200.51,0.12]
[1756738813355,4.87594081,200.52,200.51,0.12]
[1756738813526,44.53594081,200.52,200.51,0.12]
[1756738813947,46.53479181,200.52,200.51,0.12]
[1756738815437,77.66398709,200.52,200.51,0.12]
[1756738816150,91.2595811,200.52,200.51,0.12]
[1756738816853,33.79804628,200.52,200.51,0.12]
[1756738817035,68.328851,200.52,200.51,0.12]
[1756738817237,1.998851,200.52,200.51,0.12]
[1756738817442,0.67000001,200.54,200.51,0.12]
[1756738817638,39.66,200.53,200.51,0.12]
[1756738817842,43.865941,200.53,200.51,0.12]
[1756738818038,4.205941,200.53,200.51,0.12]
[1756738818255,0.67,200.52,200.51,0.12]
[1756738819767,138.105941,200.53,200.51,0.12]
[1756738820066,39.66,200.52,200.51,0.12]
[1756738820236,133.9,200.53,200.51,0.12]
[1756738820237,133.9,200.53,200.51,10.00322323]
[1756738820440,133.9,200.53,200.51,0.12]
[1756738820644,134.57,200.53,200.51,0.12]
[1756738821169,138.91810238,200.52,200.51,0.12]
[1756738821543,5.12944399,200.51,200.5,0.12]
[1756738821741,48.9753848,200.51,200.5,0.12]
[1756738822056,26.0,200.49,200.48,0.12]
[1756738822361,30.20594081,200.49,200.48,0.12]
[1756738822563,30.87594081,200.49,200.48,0.12]
[1756738822857,41.63945,200.49,200.48,0.12]
[1756738823034,46.65755238,200.49,200.48,0.12]
[1756738823237,41.78161157,200.49,200.48,0.12]
[1756738823441,41.63945,200.49,200.48,0.12]
[1756738823640,133.9,200.5,200.48,5.01594081]
[1756738823836,133.9,200.5,200.49,4.89594081]
[1756738823837,173.54,200.5,200.49,4.89594081]
[1756738824040,138.10594081,200.5,200.48,0.12]
[1756738824261,39.64,200.49,200.48,0.12]
[1756738824577,174.21,200.5,200.48,9.31390352]
[1756738824760,173.54,200.5,200.49,4.20594081]
[1756738824940,133.9,200.5,200.49,4.20594081]
[1756738825141,133.9,200.5,200.48,0.12]
[1756738825367,4.87594081,200.49,200.48,0.12]
[1756738825969,12.35604287,200.49,200.48,0.12]
[1756738826267,173.54,200.5,200.48,0.12]
[1756738826486,133.9,200.5,200.48,0.12]
[1756738826682,133.9,200.5,200.49,7.38826294]
[1756738826995,39.64000001,200.54,200.49,7.38826294]
[1756738827144,39.64000001,200.54,200.51,6.69826294]
[1756738827856,40.31000001,200.54,200.51,6.69826294]
[1756738828149,0.67,200.53,200.49,6.69826294]
[1756738828342,39.64,200.52,200.49,6.69826294]
[1756738828968,39.64,200.52,200.48,0.12]
[1756738829177,7.36826294,200.51,200.48,0.12]
[1756738829352,39.62,200.5,200.48,0.12]
[1756738829539,40.29,200.5,200.48,0.12]
[1756738830379,0.67,200.49,200.48,0.12]
[1756738830740,39.62,200.5,200.48,0.12]
[1756738831354,39.62,200.49,200.48,0.12]
[1756738831769,40.29,200.49,200.48,0.12]
[1756738832477,46.98826294,200.49,200.48,0.12]
[1756738832654,51.97604287,200.49,200.48,0.12]
[1756738833880,65.71379845,200.49,200.48,0.12]
[1756738834271,0.14216157,200.48,200.47,0.12]
[1756738834475,39.73775558,200.46,200.45,0.12]
[1756738834767,13.73775558,200.45,200.43,0.12]
[1756738834971,20.43601852,200.44,200.43,0.12]
[1756738835175,39.76216157,200.44,200.43,0.12]
[1756738835380,46.46042451,200.44,200.43,0.12]
[1756738835777,47.16042451,200.44,200.43,0.12]
[1756738836080,5.83118571,200.44,200.43,0.12]
[1756738836256,52.14944865,200.44,200.43,0.12]
[1756738836458,45.45118571,200.44,200.43,0.12]
[1756738836676,52.14944865,200.44,200.43,0.12]
[1756738838880,65.74504266,200.44,200.43,0.12]
[1756738839769,0.14216157,200.4,200.39,0.2]
[1756738839965,47.16042451,200.4,200.39,0.2]
[1756738840167,52.15044447,200.4,200.39,0.2]
[1756738840586,58.84870747,200.4,200.39,0.2]
[1756738840791,72.44430148,200.4,200.39,0.2]
[1756738841695,6.84042457,200.4,200.39,0.2]
[1756738841862,46.318263,200.4,200.39,0.2]
[1756738842065,6.698263,200.4,200.39,0.2]
[1756738842273,46.318263,200.4,200.39,0.2]
[1756738842787,113.793773,200.4,200.28,6.098263]
[1756738843095,4.17883278,200.36,200.28,6.098263]
[1756738843266,13.39652588,200.29,200.25,0.7]
[1756738843465,13.39652588,200.28,200.22,0.7]
[1756738843690,6.69826294,200.23,200.22,0.7]
[1756738843987,6.69826294,200.23,200.2,0.12]
[1756738844184,6.69826294,200.21,200.2,0.82]
[1756738844767,8.69991494,200.21,200.2,0.82]
[1756738845279,6.69826294,200.28,200.2,0.82]
[1756738845474,6.69826294,200.21,200.2,0.82]
[1756738846078,2.001351,200.25,200.2,0.82]
[1756738846398,6.69826294,200.21,200.2,0.82]
[1756738846579,2.001351,200.25,200.2,7.51826294]
[1756738846778,2.001351,200.25,200.24,6.69826294]
[1756738846981,2.001351,200.25,200.24,7.39826294]
[1756738848898,2.001351,200.25,200.24,0.7]
[1756738849100,2.001351,200.25,200.24,7.39826294]
[1756738851217,13.59559401,200.38,200.24,7.39826294]
[1756738851518,4.99051801,200.38,200.28,6.69826294]
[1756738851717,4.99051801,200.38,200.37,6.69826294]
[1756738852095,4.98927306,200.43,200.37,7.39826294]
[1756738852315,4.98927306,200.43,200.42,6.69826294]
[1756738853601,30.98927306,200.43,200.42,6.69826294]
[1756738853811,4.98902414,200.44,200.42,6.69826294]
[1756738854012,26.0,200.43,200.36,4.99092818]
[1756738854310,6.698263,200.44,200.42,7.39826294]
[1756738854490,6.698263,200.44,200.43,6.69826294]
[1756738854696,47.5412747,200.45,200.43,6.69826294]
[1756738855117,42.55243536,200.45,200.44,6.69826294]
[1756738855433,6.72826294,200.5,200.44,6.69826294]
[1756738855434,14.995126,200.48,200.44,7.39826294]
[1756738855791,4.98827754,200.47,200.44,7.39826294]
[1756738856498,4.98827754,200.47,200.44,6.69826294]
[1756738856697,6.69826294,200.46,200.36,0.7]
[1756738857011,17.4589714,200.47,200.42,6.69826294]
[1756738857204,45.9832296,200.48,200.44,6.69826294]
[1756738857523,45.9832296,200.48,200.45,6.69826294]
[1756738857724,30.9881036,200.48,200.45,6.69826294]
[1756738857926,45.9832306,200.48,200.44,7.39826294]
[1756738860122,45.9832306,200.48,200.35,13.59559401]
[1756738860431,45.9832306,200.48,200.43,6.69826294]
[1756738860602,45.9832306,200.48,200.43,7.39826294]
[1756738861417,52.68149354,200.48,200.36,19.98689217]
[1756738861616,6.84042451,200.47,200.38,0.7]
[1756738861911,6.69826294,200.46,200.41,6.69826294]
[1756738862124,4.98852638,200.46,200.41,6.69826294]
[1756738862330,19.98590238,200.46,200.41,6.69826294]
[1756738862525,26.0,200.43,200.4,6.69826294]
[1756738862900,26.0,200.43,200.39,0.7]
[1756738863205,26.0,200.43,200.4,7.39826294]
[1756738863902,138.88852638,200.46,200.41,6.69826294]
[1756738864118,138.88852638,200.46,200.44,6.69826294]
[1756738864330,138.88852638,200.46,200.43,6.69826294]
[1756738864506,138.88852638,200.46,200.43,7.39826294]
[1756738865326,133.9,200.46,200.44,7.40826294]
[1756738865528,0.03,200.48,200.45,7.40826294]
[1756738865711,0.03,200.48,200.47,6.69826294]
[1756738865909,0.03,200.48,200.47,47.07826294]
[1756738866223,0.03,200.48,200.47,7.40826294]
[1756738868228,0.03,200.48,200.47,0.71]
[1756738868425,0.03,200.48,200.47,47.72826294]
[1756738869420,0.03,200.48,200.47,7.40826294]
[1756738870421,0.03,200.48,200.47,47.70826294]
[1756738870627,0.03,200.48,200.47,7.40826294]
[1756738870821,0.03,200.48,200.47,47.68826294]
[1756738871031,0.03,200.48,200.47,52.67654048]
[1756738871206,0.03,200.48,200.47,12.39654048]
[1756738871409,0.03,200.48,200.47,7.40826294]
[1756738871650,0.03,200.48,200.47,40.28]
[1756738871930,0.03,200.48,200.47,7.40826294]
[1756738872132,0.03,200.48,200.47,47.68826294]
[1756738873210,0.03,200.48,200.47,7.40826294]
[1756738873410,0.03,200.48,200.47,47.68826294]
[1756738874615,0.03,200.48,200.47,52.67654048]
[1756738874816,0.03,200.48,200.47,47.68826294]
[1756738875221,0.03,200.48,200.47,52.67654048]
[1756738875522,0.03,200.48,200.47,47.64826294]
[1756738875720,0.03,200.48,200.47,52.63654048]
[1756738876109,0.03,200.48,200.47,25.99213449]
[1756738876343,0.03,200.48,200.47,47.62826294]
[1756738876516,0.03,200.48,200.47,7.40826294]
[1756738876845,0.03,200.48,200.47,47.62826294]
[1756738877218,0.03,200.48,200.47,7.40826294]
[1756738879547,0.03,200.48,200.45,0.71]
[1756738879724,0.03,200.48,200.47,6.69826294]
[1756738879918,0.03,200.48,200.46,46.87826294]
[1756738880230,0.03,200.48,200.47,6.69826294]
[1756738880934,0.03,200.48,200.46,40.18]
[1756738881131,0.03,200.48,200.47,6.69826294]
[1756738881329,0.03,200.48,200.45,6.69826294]
[1756738881525,0.03,200.48,200.46,46.83826294]
[1756738881841,0.03,200.48,200.46,40.14]
[1756738882136,0.03,200.48,200.44,0.71]
[1756738882325,0.03,200.48,200.45,40.14]
[1756738882511,0.03,200.48,200.45,40.85]
[1756738882719,0.03,200.48,200.47,6.69826294]
[1756738883220,0.03,200.48,200.47,7.40826294]
[1756738883637,0.03,200.48,200.47,12.39654048]
[1756738884048,0.03,200.48,200.47,47.52826294]
[1756738885225,0.03,200.48,200.44,4.98881327]
[1756738885559,0.03,200.48,200.47,6.69826294]
[1756738886054,0.03,200.48,200.47,46.77826294]
[1756738886432,0.03,200.48,200.47,40.08]
[1756738887754,0.03,200.48,200.46,6.69826294]
[1756738888253,0.03,200.48,200.47,40.06]
[1756738888936,0.03,200.48,200.47,46.75826294]
[1756738889279,0.03,200.48,200.47,6.69826294]
[1756738889453,5.01802873,200.48,200.45,40.06]
[1756738889756,5.01802873,200.48,200.44,6.69826294]
[1756738890656,5.01802873,200.48,200.45,40.02]
[1756738890832,0.03,200.48,200.45,40.02]
[1756738891450,0.03,200.48,200.43,6.69826294]
[1756738891649,0.03,200.48,200.44,47.40826294]
[1756738891852,0.03,200.48,200.44,7.40826294]
[1756738892159,6.69826294,200.47,200.43,40.0]
[1756738892547,6.69826294,200.45,200.43,40.0]
[1756738892756,6.69826294,200.45,200.39,11.68849754]
[1756738892757,6.69826294,200.44,200.39,0.71]
[1756738892957,6.69826294,200.43,200.4,39.98]
[1756738893256,6.69826294,200.42,200.4,39.98]
[1756738893460,6.69826294,200.42,200.39,0.71]
[1756738893837,6.69826294,200.4,200.37,0.71]
[1756738894132,26.0,200.45,200.38,39.98]
[1756738894133,6.69826294,200.41,200.38,39.98]
[1756738894333,6.69826294,200.41,200.38,40.69]
[1756738894530,6.69826294,200.4,200.38,40.69]
[1756738894736,6.69826294,200.41,200.38,40.69]
[1756738896340,6.69826294,200.41,200.38,39.98]
[1756738896661,6.69826294,200.43,200.39,0.66]
[1756738896834,6.69826294,200.43,200.4,0.66]
[1756738897037,140.59826294,200.43,200.38,39.98]
[1756738897234,6.69826294,200.41,200.38,40.64]
[1756738897636,6.69826294,200.41,200.38,0.66]
[1756738897837,6.69826294,200.41,200.39,39.92]
[1756738898046,6.69826294,200.41,200.39,40.58]
[1756738898643,6.69826294,200.41,200.39,0.66]
[1756738898850,6.69826294,200.41,200.39,40.58]
[1756738899761,6.69826294,200.41,200.39,0.66]
[1756738899938,6.69826294,200.41,200.39,40.54]
[1756738900264,6.69826294,200.41,200.39,39.88]
[1756738900440,4.98986318,200.41,200.38,39.88]
[1756738900642,11.68812612,200.41,200.38,39.88]
[1756738900843,6.69826294,200.41,200.38,39.88]
[1756738901166,6.69826294,200.42,200.39,0.66]
[1756738902069,4.1892546,200.42,200.39,0.66]
[1756738902237,4.1892546,200.41,200.38,39.88]
[1756738902439,4.1892546,200.4,200.38,39.86]
[1756738903439,138.91949675,200.43,200.38,39.86]
[1756738903642,3.33895006,200.42,200.39,0.66]
[1756738904249,138.1192546,200.43,200.39,0.66]
[1756738904542,4.1892546,200.41,200.39,0.66]
[1756738905462,4.1892546,200.42,200.39,0.66]
[1756738905765,133.93,200.43,200.41,4.1892546]
[1756738905943,133.93,200.43,200.42,40.48]
[1756738906671,133.93,200.43,200.42,0.66]
[1756738906847,133.93,200.43,200.42,39.84]
[1756738907355,133.93,200.43,200.42,40.5]
[1756738907963,0.03,200.43,200.42,40.5]
[1756738908175,0.03,200.43,200.42,45.489522]
[1756738908363,0.03,200.43,200.42,49.6787766]
[1756738909492,0.03,200.43,200.39,0.66]
[1756738909790,0.03,200.43,200.4,43.9892546]
[1756738909942,0.03,200.43,200.41,4.1892546]
[1756738910146,0.03,200.43,200.42,9.1787766]
[1756738910343,0.03,200.43,200.42,9.8387766]
[1756738910979,0.03,200.43,200.42,4.8492546]
[1756738911582,0.03,200.43,200.42,0.66]
[1756738911754,0.03,200.43,200.42,44.6692546]
[1756738913177,0.03,200.43,200.42,4.8492546]
[1756738913382,0.03,200.43,200.42,44.6492546]
[1756738913671,0.03,200.43,200.42,49.6387766]
[1756738914251,0.03,200.43,200.42,45.449522]
[1756738914451,0.03,200.43,200.42,49.6187766]
[1756738915352,0.03,200.43,200.42,9.8387766]
[1756738915662,0.03,200.43,200.42,40.42]
[1756738915860,0.03,200.43,200.42,39.76]
[1756738916274,0.03,200.43,200.41,4.1892546]
[1756738916461,0.03,200.43,200.42,39.78]
[1756738916854,4.2192546,200.43,200.38,4.1892546]
[1756738917054,4.2192546,200.43,200.38,0.66]
[1756738917267,4.1892546,200.41,200.39,39.78]
[1756738917562,4.1892546,200.4,200.36,0.66]
[1756738917765,4.1892546,200.4,200.37,40.42]
[1756738917972,6.70355054,200.41,200.38,39.76]
[1756738918478,6.70355054,200.4,200.35,0.66]
[1756738918782,6.70355054,200.39,200.36,39.76]
[1756738918980,6.70355054,200.39,200.37,39.76]
[1756738920261,6.70355054,200.39,200.37,40.42]
[1756738921176,6.70355054,200.39,200.37,39.76]
[1756738921375,6.70355054,200.4,200.37,39.76]
[1756738922279,31.01950645,200.43,200.38,0.66]
[1756738922485,6.70355054,200.41,200.39,0.66]
[1756738922669,6.70355054,200.41,200.38,39.74]
[1756738923078,6.70355054,200.39,200.34,0.66]
[1756738923283,6.70355054,200.37,200.34,0.66]
[1756738923589,6.70355054,200.36,200.34,39.74]
[1756738923777,6.70355054,200.37,200.34,39.74]
[1756738923972,6.70355054,200.38,200.35,0.66]
[1756738924172,153.89217892,200.39,200.34,40.4]
[1756738924371,6.70355054,200.38,200.34,40.4]
[1756738924599,6.70355054,200.38,200.34,0.66]
[1756738924898,6.70355054,200.37,200.34,40.4]
[1756738925095,6.70355054,200.37,200.34,0.66]
[1756738925305,6.70355054,200.36,200.34,39.74]
[1756738925599,6.70355054,200.36,200.31,5.67203858]
[1756738925904,6.70355054,200.34,200.29,6.70355054]
[1756738926102,6.70355054,200.34,200.3,39.74]
[1756738926599,6.70355054,200.34,200.3,40.42]
[1756738926826,6.70355054,200.31,200.27,0.68]
[1756738926974,6.70355054,200.28,200.26,39.74]
[1756738927175,6.70355054,200.28,200.25,0.8]
[1756738927371,6.70355054,200.28,200.25,40.54]
[1756738927887,6.70355054,200.27,200.25,40.54]
[1756738928188,6.70355054,200.27,200.25,0.8]
[1756738928391,6.70355054,200.27,200.25,39.86]
[1756738928783,6.70355054,200.27,200.25,0.12]
[1756738929581,6.70355054,200.27,200.25,0.8]
[1756738930317,6.70355054,200.26,200.25,0.12]
[1756738931403,11.69705897,200.26,200.25,0.12]
[1756738931821,0.14216157,200.28,200.25,0.12]
[1756738932027,6.70355054,200.26,200.25,0.12]
[1756738932703,140.60355054,200.27,200.25,0.8]
[1756738933205,133.9,200.27,200.26,0.68]
[1756738933795,133.9,200.27,200.26,5.67350843]
[1756738934113,133.18,200.27,200.26,52.13705897]
[1756738934824,133.18,200.27,200.26,0.68]
[1756738935025,133.18,200.27,200.26,40.44]
[1756738936717,145.53691098,200.27,200.25,0.12]
[1756738936927,7.36355054,200.26,200.25,0.12]
[1756738937132,7.50571211,200.26,200.25,0.12]
[1756738937301,33.50571211,200.26,200.25,0.12]
[1756738937794,78.25922054,200.26,200.25,0.12]
[1756738939234,52.25922054,200.26,200.25,0.12]
[1756738939522,65.85481455,200.26,200.25,0.12]
[1756738940102,63.34928838,200.26,200.25,0.12]
[1756738941815,23.58928838,200.26,200.25,0.12]
[1756738942017,0.14216157,200.26,200.25,0.12]
[1756738942318,9.33369437,200.26,200.25,0.12]
[1756738942522,9.1915328,200.26,200.25,0.12]
[1756738943528,4.19802437,200.26,200.25,0.12]
[1756738944400,9.33369437,200.26,200.25,0.12]
[1756738945007,4.34018594,200.26,200.25,0.12]
[1756738945403,9.33369437,200.26,200.25,0.12]
[1756738945724,4.34018594,200.26,200.25,0.12]
[1756738945927,0.14216157,200.26,200.25,0.12]
[1756738946137,4.19802437,200.26,200.25,0.12]
[1756738946697,4.99350843,200.26,200.25,0.12]
[1756738946901,9.1915328,200.26,200.25,0.12]
[1756738948027,35.1915328,200.26,200.25,0.12]
[1756738948234,37.1930838,200.26,200.25,0.12]
[1756738948926,32.19957537,200.26,200.25,0.12]
[1756738949529,37.1930838,200.26,200.25,0.12]
[1756738950440,37.99524537,200.26,200.25,0.12]
[1756738950623,51.75524537,200.26,200.25,0.12]
[1756738951618,65.35083938,200.26,200.25,0.12]
[1756738953512,24.93083938,200.26,200.25,0.12]
[1756738953713,64.69083938,200.26,200.25,0.12]
[1756738953930,65.35083938,200.26,200.25,0.12]
[1756738958517,64.69083938,200.26,200.25,0.12]
[1756738958726,65.41083938,200.26,200.25,0.12]
[1756738959641,69.52071812,200.26,200.25,0.12]
[1756738960439,65.41083938,200.26,200.25,0.12]
[1756738960635,68.74044822,200.26,200.25,0.12]
[1756738961045,20.73281501,200.26,200.25,0.12]
[1756738961222,11.33524537,200.26,200.25,0.8]
[1756738962130,7.137221,200.26,200.25,0.8]
[1756738962330,6.34173694,200.26,200.25,0.8]
[1756738963941,2.001551,200.26,200.25,0.8]
[1756738964245,13.62559401,200.3,200.25,0.8]
[1756738964246,0.03,200.3,200.25,9.99178217]
[1756738964420,0.03,200.3,200.26,0.68]
[1756738964820,0.03,200.3,200.27,4.19802437]
[1756738965045,0.03,200.3,200.26,0.68]
[1756738965219,0.03,200.3,200.27,4.19802437]
[1756738965419,0.03,200.3,200.29,4.19802437]
[1756738965839,0.03,200.3,200.29,4.87802437]
[1756738966345,0.03,200.3,200.29,9.87078486]
[1756738966540,0.03,200.3,200.29,0.68]
[1756738966745,0.03,200.3,200.29,5.67276049]
[1756738968418,0.03,200.3,200.29,9.87078486]
[1756738969432,0.03,200.3,200.29,23.46637887]
[1756738972451,0.03,200.3,200.29,63.20637887]
[1756738977349,0.03,200.32,200.3,13.59559401]
[1756738977527,0.03,200.32,200.31,43.91802437]
[1756738977729,0.03,200.32,200.31,44.59802437]
[1756738980452,0.03,200.32,200.31,49.59028636]
[1756738982027,0.03,200.33,200.32,13.59559401]
[1756738982227,0.03,200.33,200.32,18.47361838]
[1756738982449,0.03,200.33,200.32,23.46563115]
[1756738982634,0.03,200.33,200.32,63.18563115]
[1756738983547,0.03,200.33,200.32,9.87003714]
[1756738983746,0.03,200.33,200.32,49.57003714]
[1756738985538,0.03,200.33,200.32,9.87003714]
[1756738985736,0.03,200.33,200.32,49.57003714]
[1756738986757,0.03,200.33,200.32,48.89003714]
[1756738987140,0.03,200.33,200.32,9.19003714]
[1756738987345,0.03,200.33,200.29,4.19802437]
[1756738987853,0.03,200.33,200.27,0.12]
[1756738987854,4.19802437,200.31,200.3,39.7]
[1756738988059,0.03,200.33,200.3,39.7]
[1756738988440,0.03,200.33,200.29,4.19802437]
[1756738988634,0.03,200.33,200.3,44.59802437]
[1756738988958,0.03,200.33,200.31,9.19015481]
[1756738989330,0.03,200.33,200.29,9.19055995]
[1756738989663,4.22802437,200.33,200.3,39.7]
[1756738989837,0.03,200.33,200.3,39.7]
[1756738990652,4.94802437,200.33,200.3,39.7]
[1756738990857,4.94802437,200.33,200.28,9.89099032]
[1756738991051,0.72,200.32,200.29,39.7]
[1756738991239,0.72,200.31,200.29,39.7]
[1756738991438,0.03,200.33,200.29,39.7]
[1756738991756,0.03,200.33,200.29,40.4]
[1756738992959,4.19802437,200.32,200.3,39.7]
[1756738993370,4.22802437,200.33,200.3,39.7]
[1756738993960,0.03,200.33,200.31,0.7]
[1756738994179,0.03,200.33,200.32,4.89802437]
[1756738995073,0.03,200.33,200.32,44.69201277]
[1756738995561,0.03,200.33,200.32,4.99201277]
[1756738995865,0.03,200.33,200.32,49.59003714]
[1756738996560,133.9,200.38,200.32,62.07006908]
[1756738996865,133.9,200.38,200.35,4.19802437]
[1756738997041,133.9,200.38,200.36,44.67101617]
[1756738997446,41.029625,200.42,200.36,44.67101617]
[1756738997659,0.03,200.42,200.37,4.89802437]
[1756738997845,0.03,200.42,200.38,4.19802437]
[1756738998046,0.03,200.42,200.38,4.89802437]
[1756738998789,0.03,200.42,200.38,4.19802437]
[1756738999181,0.03,200.42,200.38,9.18854238]
[1756739000787,0.03,200.42,200.38,9.88854238]
[1756739000983,0.03,200.42,200.38,49.56854238]
[1756739001282,0.03,200.42,200.38,62.04483741]
[1756739001480,0.03,200.42,200.41,4.19802437]
[1756739001689,0.03,200.42,200.41,43.87802437]
[1756739001901,0.03,200.42,200.41,44.57802437]
[1756739003173,0.03,200.42,200.41,9.88779533]
[1756739003373,0.03,200.42,200.41,48.86779533]
[1756739003587,0.03,200.42,200.41,49.56779533]
[1756739004884,0.03,200.43,200.41,49.56779533]
[1756739005082,0.03,200.43,200.42,4.19802437]
[1756739005284,0.03,200.43,200.42,9.88754637]
[1756739006195,0.03,200.43,200.42,5.689522]
[1756739006362,0.03,200.43,200.42,9.88754637]
[1756739007692,0.03,200.43,200.42,9.18754637]
[1756739007870,0.03,200.43,200.42,48.84754637]
[1756739008784,0.03,200.43,200.42,49.54754637]
[1756739010877,0.03,200.46,200.42,62.02135137]
[1756739011085,0.03,200.46,200.45,4.19802437]
[1756739011283,0.03,200.46,200.45,43.85802437]
[1756739011867,0.03,200.46,200.45,48.84679962]
[1756739012194,0.03,200.46,200.45,4.98877525]
[1756739012389,0.75,200.46,200.45,44.62877525]
[1756739012900,0.03,200.46,200.45,44.62877525]